fUST/lending_fUST_20241202
["ID","MTS","AMOUNT","RATE_DAILY","PERIOD"]
[343936825,1733101847641,-500.0,0.00027671,7]
[343936826,1733101847652,-761.53,0.00027671,7]
[343936827,1733101847663,-500.0,0.00027671,7]
[343936828,1733101847673,-513.29317161,0.00027671,7]
[343936829,1733101847686,-500.0,0.00027671,7]
[343936830,1733101847696,-500.0,0.00027671,7]
[343936831,1733101847710,-500.0,0.00027671,7]
[343936832,1733101847720,-500.0,0.00027671,7]
[343936833,1733101847730,-500.0,0.00027671,7]
[343936834,1733101847739,-500.0,0.00027671,7]
[343936835,1733101847749,-500.0,0.00027671,7]
[343936836,1733101847759,-500.0,0.00027671,7]
[343936837,1733101847769,-500.0,0.00027671,7]
[343936838,1733101847778,-500.0,0.00027671,7]
[343936839,1733101847787,-889.74,0.00027671,7]
[343936840,1733101847797,-500.0,0.00027671,7]
[343936841,1733101847806,-510.08027267,0.00027671,7]
[343936842,1733101847816,-500.0,0.00027671,7]
[343936843,1733101847825,-617.92,0.00027671,7]
[343936844,1733101847834,-500.0,0.00027671,7]
[343936845,1733101847843,-500.0,0.00027671,7]
[343936846,1733101847852,-500.0,0.00027671,7]
[343936847,1733101847862,-500.0,0.00027671,7]
[343936848,1733101847871,-248.50789767,0.00027671,7]
[343936849,1733101847880,-500.0,0.00027671,7]
[343936850,1733101847890,-500.0,0.00027671,7]
[343936851,1733101847901,-500.0,0.00027671,10]
[343936852,1733101847910,-500.0,0.00027671,7]
[343936853,1733101847920,-485.35670947,0.00027671,7]
[343936854,1733101847931,-532.6145328,0.00027671,7]
[343936855,1733101847941,-500.0,0.00027671,7]
[343936856,1733101847950,-500.0,0.00027671,2]
[343936857,1733101847960,-500.0,0.00027671,7]
[343936858,1733101847970,-500.0,0.00027671,7]
[343936859,1733101847979,-500.0,0.00027671,7]
[343936860,1733101847991,-500.0,0.00027671,7]
[343936861,1733101848001,-807.33,0.00027671,7]
[343936862,1733101848011,-500.0,0.00027671,7]
[343936863,1733101848021,-500.0,0.00027671,7]
[343936864,1733101848030,-500.0,0.00027671,7]
[343936865,1733101848040,-316.73338031,0.00027671,7]
[343936866,1733101848050,-643.93,0.00027671,7]
[343936867,1733101848060,-500.0,0.00027671,7]
[343936868,1733101848073,-500.0,0.00027671,7]
[343936869,1733101848083,-500.0,0.00027671,7]
[343936870,1733101848093,-500.0,0.00027671,7]
[343936871,1733101848103,-473.18928205,0.00027671,7]
[343936872,1733101848113,-514.15131863,0.00027671,7]
[343936873,1733101848123,-500.0,0.00027671,7]
[343936874,1733101848133,-500.0,0.00027671,7]
[343936875,1733101848143,-500.0,0.00027671,7]
[343936876,1733101848152,-500.0,0.00027671,7]
[343936877,1733101848162,-501.60766038,0.00027671,7]
[343936878,1733101848171,-527.32716653,0.00027671,7]
[343936879,1733101848183,-500.0,0.00027671,7]
[343936880,1733101848192,-500.0,0.00027671,7]
[343936881,1733101848202,-193.75013825,0.00027671,7]
[343936882,1733101848212,-372.01158311,0.00027671,7]
[343936883,1733101848221,-500.0,0.00027671,7]
[343936884,1733101848231,-500.0,0.00027671,7]
[343936885,1733101848241,-195.88989763,0.00027671,7]
[343936886,1733101848251,-500.0,0.00027671,2]
[343936887,1733101848261,-150.15,0.00027671,3]
[343936888,1733101848271,-500.0,0.00027671,7]
[343936889,1733101848280,-150.15,0.00027671,2]
[343936890,1733101848290,-360.78527396,0.00027671,7]
[343936891,1733101848299,-500.0,0.00027671,7]
[343936892,1733101848313,-500.0,0.00027671,3]
[343936893,1733101848326,-500.0,0.00027671,7]
[343936894,1733101848341,-5120.17,0.00027671,7]
[343936895,1733101848358,-500.0,0.00027671,7]
[343936896,1733101848371,-568.03,0.00027671,7]
[343936897,1733101848387,-505.58095975,0.00027671,7]
[343936898,1733101848403,-500.0,0.00027671,7]
[343936899,1733101848419,-861.78,0.00027671,7]
[343936900,1733101848436,-518.96405474,0.00027671,7]
[343936901,1733101848453,-531.96,0.00027671,7]
[343936902,1733101848468,-1235.49,0.00027671,7]
[343936903,1733101848484,-500.0,0.00027671,7]
[343936904,1733101848500,-818.48,0.00027671,7]
[343936905,1733101848517,-500.0,0.00027671,7]
[343936906,1733101848531,-276.82047694,0.00027671,7]
[343936907,1733101848561,-223.17952306,0.00027671,7]
[343936908,1733101848575,-500.0,0.00027671,7]
[343936909,1733101848589,-151.0,0.00027671,7]
[343936910,1733101848605,-500.0,0.00027671,7]
[343936911,1733101848620,-476.12788319,0.00027671,7]
[343936912,1733101848637,-1855.43,0.00027671,7]
[343936913,1733101848653,-641.28,0.00027671,7]
[343936914,1733101848665,-500.0,0.00027671,7]
[343936915,1733101848677,-500.0,0.00027671,7]
[343936916,1733101848694,-500.0,0.00027671,7]
[343936917,1733101848708,-500.0,0.00027671,7]
[343936918,1733101848720,-500.0,0.00027671,7]
[343936919,1733101848733,-600.95,0.00027671,7]
[343936920,1733101848748,-500.0,0.00027671,7]
[343936921,1733101848760,-500.0,0.00027671,7]
[343936922,1733101848771,-934.93,0.00027671,7]
[343936923,1733101848784,-500.0,0.00027671,7]
[343936924,1733101848796,-500.0,0.00027671,7]
[343936925,1733101848809,-500.0,0.00027671,7]
[343936926,1733101848822,-500.0,0.00027671,7]
[343936927,1733101848834,-500.0,0.00027671,7]
[343936928,1733101848847,-500.0,0.00027671,7]
[343936929,1733101848858,-500.0,0.00027671,7]
[343936930,1733101848871,-500.0,0.00027671,7]
[343936931,1733101848884,-500.0,0.00027671,7]
[343936932,1733101848897,-681.52,0.00027671,7]
[343936933,1733101848909,-500.0,0.00027671,7]
[343936934,1733101848922,-500.0,0.00027671,7]
[343936935,1733101848936,-1500.0,0.00027671,2]
[343936936,1733101848948,-500.0,0.00027671,7]
[343936937,1733101848961,-738.13,0.00027671,7]
[343936938,1733101848974,-500.0,0.00027671,7]
[343936939,1733101848986,-725.45,0.00027671,7]
[343936940,1733101848998,-500.0,0.00027671,7]
[343936941,1733101849011,-500.0,0.00027671,7]
[343936942,1733101849023,-500.0,0.00027671,7]
[343936943,1733101849035,-500.0,0.00027671,7]
[343936944,1733101849048,-2905.34,0.00027671,7]
[343936945,1733101849060,-500.0,0.00027671,7]
[343936946,1733101849072,-500.0,0.00027671,7]
[343936947,1733101849081,-500.0,0.00027671,7]
[343936948,1733101849091,-1100.27,0.00027671,7]
[343936949,1733101849102,-300.83904631,0.00027671,7]
[343936950,1733101849112,-150.17,0.00027671,3]
[343936951,1733101849122,-150.17,0.00027671,2]
[343936952,1733101849132,-500.0,0.00027671,7]
[343936953,1733101849142,-150.17,0.00027671,3]
[343936954,1733101849152,-743.87,0.00027671,7]
[343936955,1733101849162,-500.0,0.00027671,7]
[343936956,1733101849172,-500.0,0.00027671,7]
[343936957,1733101849183,-442.43254791,0.00027671,7]
[343936958,1733101849192,-500.0,0.00027671,7]
[343936959,1733101849203,-2335.21,0.00027671,7]
[343936960,1733101849348,-500.0,0.00027671,7]
[343936961,1733101849361,-500.0,0.00027671,7]
[343936962,1733101849372,-500.0,0.00027671,7]
[343936963,1733101849382,-500.0,0.00027671,7]
[343936964,1733101849392,-523.52,0.00027671,7]
[343936965,1733101849404,-500.0,0.00027671,7]
[343936966,1733101849414,-514.65,0.00027671,7]
[343936967,1733101849424,-888.62,0.00027671,7]
[343936968,1733101849437,-500.0,0.00027671,7]
[343936969,1733101849448,-246.42,0.00027671,7]
[343936970,1733101849459,-500.0,0.00027671,7]
[343936971,1733101849469,-837.28,0.00027671,7]
[343936972,1733101849479,-500.0,0.00027671,7]
[343936973,1733101849489,-500.0,0.00027671,7]
[343936974,1733101849498,-500.0,0.00027671,7]
[343936975,1733101849508,-346.86262658,0.00027671,7]
[343936976,1733101849519,-500.0,0.00027671,7]
[343936977,1733101849528,-500.0,0.00027671,7]
[343936978,1733101849538,-507.90410497,0.00027671,7]
[343936979,1733101849548,-500.0,0.00027671,7]
[343936980,1733101849558,-500.0,0.00027671,7]
[343936981,1733101849568,-500.0,0.00027671,7]
[343936982,1733101849577,-500.0,0.00027671,7]
[343936983,1733101849587,-500.0,0.00027671,7]
[343936984,1733101849597,-500.0,0.00027671,7]
[343936985,1733101849607,-500.0,0.00027671,7]
[343936986,1733101849616,-500.0,0.00027671,7]
[343936987,1733101849626,-500.0,0.00027671,7]
[343936988,1733101849637,-500.0,0.00027671,7]
[343936989,1733101849647,-500.0,0.00027671,7]
[343936990,1733101849657,-12747.67528846,0.00027671,7]
[343936991,1733101849671,-13965.82140833,0.00027671,7]
[343936992,1733101849807,-1277.73423777,0.00020894,2]
[343936995,1733102191933,167.707503,0.00013973,2]
[343937013,1733102933024,167.458163,0.00013973,2]
[343937024,1733102964137,-3652.961564,0.00017424,2]
[343937025,1733102992175,1000.0,0.00026,60]
[343937133,1733103034987,-1514.30866522,0.0001725,2]
[343937135,1733103034998,-2681.27481418,0.0001725,2]
[343937137,1733103035008,-1347.038436,0.00017424,2]
[343937139,1733103035017,-154.49976946,0.000176,2]
[343937141,1733103035027,-323.092337,0.00022648,2]
[343937143,1733103035037,-192.7029344,0.0002293,2]
[343937145,1733103035046,-168.6805807,0.00022944,2]
[343937147,1733103035056,-300.0,0.00022947,2]
[343937149,1733103035066,-300.0,0.00022947,2]
[343937151,1733103035075,-172.0,0.00022947,2]
[343937153,1733103035085,-5581.859964,0.00022948,2]
[343937155,1733103035095,-158.460326,0.00023562,2]
[343937157,1733103035105,-160.0,0.00024258,3]
[343937159,1733103035114,-562.97952359,0.00024331,2]
[343937160,1733103035124,-9758.40131467,0.00024332,2]
[343937162,1733103035137,-15141.59868533,0.00024332,2]
[343937163,1733103035147,-1434.98663153,0.00024333,2]
[343937164,1733103035156,-1248.11016403,0.00024333,2]
[343937165,1733103035165,-250.0,0.0002448,2]
[343937167,1733103035175,-12506.1851334,0.00024565,2]
[343937169,1733103035184,-8703.08152927,0.000246,2]
[343937170,1733103035193,-218.5466888,0.00024889,2]
[343937171,1733103035203,-420.0,0.00024911,2]
[343937172,1733103035212,-2130.3,0.00024979,10]
[343937173,1733103035221,-199.93111588,0.00024989,2]
[343937174,1733103035230,-19752.34347259,0.0002499,2]
[343937189,1733103038384,-3186.61922904,0.0002499,2]
[343937190,1733103038396,-11805.33809794,0.0002499,2]
[343937191,1733103038406,-2523.2013708,0.00025,2]
[343937192,1733103038416,-2284.45943116,0.00025,2]
[343937227,1733103040232,-11112.77221453,0.00025,2]
[343937229,1733103040242,-303.45243155,0.00025,2]
[343937231,1733103040252,-3865.07471841,0.0002509,2]
[343937233,1733103040262,-1248.11016398,0.00025197,2]
[343937234,1733103040271,-420.0,0.00025241,2]
[343937235,1733103040280,-160.0,0.00025297,4]
[343937236,1733103040290,-500.0,0.00025999,2]
[343937237,1733103040300,-220.52253088,0.00025999,2]
[343937238,1733103040309,-259.35843105,0.00025999,2]
[343937239,1733103040319,-261.95770847,0.00025999,2]
[343937240,1733103040329,-373.61994831,0.00025999,2]
[343937241,1733103040337,-9736.19990267,0.00026,10]
[343937243,1733103040347,-6038.8014385,0.00026,2]
[343937244,1733103040356,-1017.96388673,0.00026,30]
[343937246,1733103040368,-856.000005,0.00026,30]
[343937277,1733103043341,-500.0,0.00024988,2]
[343937278,1733103043352,-581.39260308,0.00024988,2]
[343937279,1733103043362,-77.31228504,0.00024988,2]
[343937280,1733103043406,-422.68771496,0.00024988,2]
[343937281,1733103043416,-78.68313279,0.00024988,2]
[343937282,1733103043586,-421.31686721,0.00024988,2]
[343937283,1733103043596,-298.64666786,0.00024988,2]
[343937284,1733103043606,-500.0,0.00024988,2]
[343937285,1733103043616,-500.0,0.00024988,2]
[343937286,1733103043626,-502.08223544,0.00024988,2]
[343937287,1733103043640,-500.0,0.00024988,2]
[343937288,1733103043650,-500.0,0.00024988,2]
[343937289,1733103043659,-500.0,0.00024988,2]
[343937290,1733103043669,-500.0,0.00024988,2]
[343937291,1733103043679,-500.0,0.00024988,2]
[343937292,1733103043689,-500.0,0.00024988,2]
[343937294,1733103043700,-500.0,0.00024988,2]
[343937296,1733103043710,-500.0,0.00024988,2]
[343937298,1733103043721,-500.0,0.00024988,2]
[343937299,1733103043734,-500.0,0.00024988,2]
[343937300,1733103043744,-500.0,0.00024988,2]
[343937302,1733103043754,-500.0,0.00024988,2]
[343937304,1733103043764,-500.0,0.00024988,2]
[343937306,1733103043775,-500.0,0.00024988,2]
[343937308,1733103043786,-500.0,0.00024988,2]
[343937310,1733103043796,-339.15828289,0.00024988,2]
[343937312,1733103043806,-500.0,0.00024988,2]
[343937313,1733103043816,-500.0,0.00024988,2]
[343937314,1733103043826,-500.0,0.00024988,2]
[343937315,1733103043836,-500.0,0.00024988,2]
[343937316,1733103043845,-500.0,0.00024988,2]
[343937317,1733103043855,-500.0,0.00024988,2]
[343937319,1733103043865,-500.0,0.00024988,2]
[343937321,1733103043875,-505.40007599,0.00024988,2]
[343937323,1733103043888,-500.0,0.00024988,2]
[343937325,1733103043899,-516.56033321,0.00024988,2]
[343937326,1733103043909,-500.0,0.00024988,2]
[343937327,1733103043919,-500.0,0.00024988,2]
[343937328,1733103043929,-500.0,0.00024988,2]
[343937329,1733103043939,-395.15302449,0.00024988,2]
[343937330,1733103043949,-500.0,0.00024988,2]
[343937331,1733103043960,-500.0,0.00024988,2]
[343937332,1733103043970,-500.0,0.00024988,2]
[343937333,1733103043980,-500.0,0.00024988,2]
[343937334,1733103043990,-472.99268824,0.00024988,2]
[343937335,1733103044000,-500.0,0.00024988,2]
[343937336,1733103044013,-500.0,0.00024988,2]
[343937337,1733103044024,-500.0,0.00024988,2]
[343937338,1733103044033,-500.0,0.00024988,2]
[343937339,1733103044047,-500.0,0.00024988,2]
[343937340,1733103044056,-500.0,0.00024988,2]
[343937341,1733103044066,-500.0,0.00024988,2]
[343937342,1733103044076,-500.0,0.00024988,2]
[343937343,1733103044086,-500.0,0.00024988,2]
[343937344,1733103044096,-500.0,0.00024988,2]
[343937345,1733103044195,-500.0,0.00024988,2]
[343937346,1733103044205,-500.0,0.00024988,2]
[343937347,1733103044216,-500.0,0.00024988,2]
[343937348,1733103044226,-500.0,0.00024988,2]
[343937349,1733103044237,-500.0,0.00024988,2]
[343937350,1733103044248,-500.0,0.00024988,2]
[343937351,1733103044259,-500.0,0.00024988,2]
[343937352,1733103044269,-500.0,0.00024988,2]
[343937353,1733103044280,-500.0,0.00024988,2]
[343937354,1733103044290,-500.0,0.00024988,2]
[343937355,1733103044301,-500.0,0.00024988,2]
[343937356,1733103044311,-500.50877727,0.00024988,2]
[343937357,1733103044321,-500.0,0.00024988,2]
[343937358,1733103044330,-500.0,0.00024988,2]
[343937359,1733103044340,-500.0,0.00024988,2]
[343937360,1733103044349,-500.0,0.00024988,2]
[343937361,1733103044359,-500.0,0.00024988,2]
[343937362,1733103044368,-500.0,0.00024988,2]
[343937363,1733103044379,-500.0,0.00024988,2]
[343937364,1733103044391,-500.0,0.00024988,2]
[343937365,1733103044401,-500.0,0.00024988,2]
[343937366,1733103044411,-500.0,0.00024988,2]
[343937367,1733103044421,-11690.14013611,0.00026,30]
[343937368,1733103044431,-1248.11016398,0.00026062,2]
[343937369,1733103044442,-167.458163,0.00026274,2]
[343937370,1733103044451,-160.0,0.00026336,5]
[343937371,1733103044461,-272.72244117,0.00026336,5]
[343937372,1733103044470,-166.982,0.00026773,14]
[343937373,1733103044480,-468.84,0.00026828,3]
[343937374,1733103044489,-187.53,0.00026831,3]
[343937375,1733103044499,-156.27,0.00026832,3]
[343937376,1733103044509,-1775.25,0.00026833,10]
[343937377,1733103044519,-58582.33005814,0.00026843,30]
[343937383,1733103046189,-5000.0,0.00024738,2]
[343937384,1733103046200,-500.0,0.00024988,2]
[343937385,1733103046210,-500.0,0.00024988,2]
[343937386,1733103046219,-500.0,0.00024988,2]
[343937387,1733103046229,-500.0,0.00024988,2]
[343937388,1733103046239,-500.0,0.00024988,2]
[343937389,1733103046249,-500.0,0.00024988,2]
[343937390,1733103046258,-500.0,0.00024988,2]
[343937391,1733103046268,-3422.75334186,0.00026843,30]
[343937392,1733103046278,-500.0,0.00026873,2]
[343937393,1733103046287,-1248.11016398,0.00026926,2]
[343937394,1733103046297,-587.0,0.00027044,2]
[343937395,1733103046306,-666.0,0.00027297,2]
[343937396,1733103046315,-500.0,0.00027373,2]
[343937397,1733103046325,-599.82998271,0.00027373,2]
[343937399,1733103046334,-160.91412201,0.00027373,2]
[343937401,1733103046344,-500.0,0.00027373,2]
[343937402,1733103046354,-501.85719436,0.00027373,2]
[343937404,1733103046363,-563.72598701,0.00027373,2]
[343937405,1733103046373,-500.0,0.00027373,2]
[343937406,1733103046384,-511.08117913,0.00027373,2]
[343937407,1733103046393,-500.0,0.00027373,2]
[343937408,1733103046402,-322.36990249,0.00027373,2]
[343937409,1733103046414,-503.90796102,0.00027397,7]
[343937410,1733103046424,-500.0,0.00027397,7]
[343937411,1733103046433,-502.18642922,0.00027397,7]
[343937412,1733103046443,-501.33159089,0.00027397,7]
[343937413,1733103046453,-501.59006949,0.00027397,7]
[343937414,1733103046463,-500.0,0.00027397,7]
[343937415,1733103046472,-500.0,0.00027397,7]
[343937416,1733103046485,-500.0,0.00027397,7]
[343937417,1733103046498,-710.17,0.00027397,7]
[343937418,1733103046512,-224.02996738,0.00027397,7]
[343937419,1733103046524,-500.0,0.00027397,7]
[343937420,1733103046535,-500.0,0.00027397,7]
[343937421,1733103046548,-500.0,0.00027397,7]
[343937422,1733103046561,-623.23546272,0.00027397,7]
[343937423,1733103046574,-500.0,0.00027397,7]
[343937424,1733103046588,-535.32900852,0.00027397,7]
[343937425,1733103046600,-500.0,0.00027397,7]
[343937426,1733103046613,-228.34273026,0.00027397,7]
[343937427,1733103046626,-500.0,0.00027397,7]
[343937428,1733103046641,-500.0,0.00027397,7]
[343937429,1733103046652,-500.0,0.00027397,7]
[343937430,1733103046664,-500.0,0.00027397,7]
[343937431,1733103046676,-500.0,0.00027397,7]
[343937432,1733103046689,-500.0,0.00027397,7]
[343937433,1733103046701,-353.34196075,0.00027397,7]
[343937434,1733103046712,-508.08050503,0.00027397,7]
[343937435,1733103046727,-500.0,0.00027397,7]
[343937436,1733103046738,-500.0,0.00027397,7]
[343937437,1733103046751,-500.0,0.00027397,7]
[343937438,1733103046764,-500.0,0.00027397,7]
[343937439,1733103046778,-500.0,0.00027397,7]
[343937440,1733103046790,-500.0,0.00027397,7]
[343937441,1733103046804,-500.0,0.00027397,7]
[343937442,1733103046817,-500.0,0.00027397,7]
[343937443,1733103046831,-500.0,0.00027397,7]
[343937444,1733103046841,-500.0,0.00027397,7]
[343937445,1733103046851,-500.0,0.00027397,7]
[343937446,1733103046862,-520.7,0.00027397,7]
[343937447,1733103046874,-500.0,0.00027397,7]
[343937448,1733103046891,-500.0,0.00027397,2]
[343937449,1733103046904,-533.69121379,0.00027397,7]
[343937450,1733103046915,-500.0,0.00027397,7]
[343937451,1733103046926,-500.0,0.00027397,7]
[343937452,1733103046937,-836.43,0.00027397,7]
[343937453,1733103046949,-810.79,0.00027397,7]
[343937454,1733103046961,-500.0,0.00027397,7]
[343937455,1733103046973,-500.0,0.00027397,7]
[343937456,1733103046983,-501.86580872,0.00027397,7]
[343937457,1733103046994,-500.0,0.00027397,7]
[343937458,1733103047005,-500.0,0.00027397,7]
[343937459,1733103047017,-500.0,0.00027397,7]
[343937460,1733103047028,-500.0,0.00027397,7]
[343937461,1733103047039,-500.0,0.00027397,7]
[343937462,1733103047051,-448.77036845,0.00027397,7]
[343937463,1733103047062,-500.0,0.00027397,7]
[343937464,1733103047074,-500.0,0.00027397,7]
[343937465,1733103047085,-500.0,0.00027397,7]
[343937466,1733103047096,-500.0,0.00027397,7]
[343937467,1733103047107,-912.83,0.00027397,7]
[343937468,1733103047118,-500.0,0.00027397,7]
[343937469,1733103047130,-500.0,0.00027397,7]
[343937470,1733103047145,-298.49137594,0.00027397,7]
[343937471,1733103047157,-500.0,0.00027397,7]
[343937472,1733103047169,-500.0,0.00027397,7]
[343937473,1733103047182,-500.0,0.00027397,7]
[343937474,1733103047195,-500.0,0.00027397,7]
[343937475,1733103047207,-507.68509206,0.00027397,7]
[343937476,1733103047220,-500.0,0.00027397,7]
[343937477,1733103047232,-500.0,0.00027397,7]
[343937478,1733103047244,-500.0,0.00027397,7]
[343937479,1733103047256,-500.0,0.00027397,7]
[343937480,1733103047267,-500.0,0.00027397,7]
[343937481,1733103047279,-500.0,0.00027397,7]
[343937482,1733103047291,-437.34828235,0.00027397,7]
[343937483,1733103047302,-158.12,0.00027397,7]
[343937484,1733103047313,-500.0,0.00027397,7]
[343937485,1733103047324,-500.0,0.00027397,7]
[343937486,1733103047336,-500.0,0.00027397,7]
[343937487,1733103047347,-500.0,0.00027397,7]
[343937488,1733103047359,-701.5,0.00027397,7]
[343937489,1733103047370,-787.47,0.00027397,7]
[343937490,1733103047384,-500.0,0.00027397,7]
[343937491,1733103047396,-500.0,0.00027397,7]
[343937492,1733103047408,-496.9818747,0.00027397,7]
[343937493,1733103047418,-500.0,0.00027397,7]
[343937494,1733103047429,-500.0,0.00027397,7]
[343937495,1733103047440,-500.0,0.00027397,7]
[343937496,1733103047450,-500.0,0.00027397,7]
[343937497,1733103047459,-500.0,0.00027397,7]
[343937498,1733103047589,-500.0,0.00027397,7]
[343937499,1733103047600,-165.34,0.00027397,7]
[343937500,1733103047609,-500.0,0.00027397,7]
[343937501,1733103047619,-313.52652812,0.00027397,7]
[343937502,1733103047629,-500.0,0.00027397,7]
[343937503,1733103047641,-273.45670485,0.00027397,7]
[343937504,1733103047650,-500.0,0.00027397,7]
[343937505,1733103047659,-508.39155695,0.00027397,7]
[343937506,1733103047668,-624.73,0.00027397,7]
[343937507,1733103047677,-500.0,0.00027397,7]
[343937508,1733103047687,-500.0,0.00027397,7]
[343937509,1733103047696,-500.0,0.00027397,7]
[343937510,1733103047706,-500.0,0.00027397,7]
[343937511,1733103047715,-500.0,0.00027397,7]
[343937512,1733103047724,-608.30797793,0.00027397,7]
[343937513,1733103047738,-500.0,0.00027397,2]
[343937514,1733103047747,-500.0,0.00027397,7]
[343937515,1733103047757,-500.0,0.00027397,7]
[343937516,1733103047766,-500.0,0.00027397,7]
[343937517,1733103047776,-506.42002059,0.00027397,7]
[343937518,1733103047785,-500.0,0.00027397,7]
[343937519,1733103047794,-528.54729865,0.00027397,7]
[343937520,1733103047806,-500.0,0.00027397,2]
[343937521,1733103047816,-509.07163528,0.00027397,7]
[343937522,1733103047825,-500.0,0.00027397,7]
[343937523,1733103047835,-317.73190926,0.00027397,7]
[343937524,1733103047845,-500.0,0.00027397,7]
[343937525,1733103047855,-500.0,0.00027397,7]
[343937526,1733103047865,-631.94,0.00027397,7]
[343937527,1733103047874,-500.0,0.00027397,7]
[343937528,1733103047885,-500.0,0.00027397,7]
[343937529,1733103047894,-1132.53,0.00027397,7]
[343937530,1733103047904,-507.28932565,0.00027397,7]
[343937531,1733103047913,-550.87,0.00027397,7]
[343937532,1733103047923,-500.0,0.00027397,7]
[343937533,1733103047933,-500.0,0.00027397,7]
[343937534,1733103047942,-500.0,0.00027397,7]
[343937535,1733103047951,-1700.82,0.00027397,7]
[343937536,1733103047961,-502.23891352,0.00027397,7]
[343937537,1733103047971,-500.0,0.00027397,7]
[343937538,1733103047981,-500.0,0.00027397,7]
[343937539,1733103047991,-500.0,0.00027397,7]
[343937540,1733103048000,-502.77714512,0.00027397,7]
[343937541,1733103048012,-506.30339625,0.00027397,7]
[343937542,1733103048021,-500.0,0.00027397,7]
[343937543,1733103048030,-500.0,0.00027397,7]
[343937544,1733103048040,-500.0,0.00027397,7]
[343937545,1733103048049,-512.20352234,0.00027397,7]
[343937546,1733103048058,-500.0,0.00027397,7]
[343937547,1733103048067,-500.0,0.00027397,7]
[343937548,1733103048077,-510.97805635,0.00027397,7]
[343937549,1733103048087,-500.0,0.00027397,7]
[343937550,1733103048096,-504.14719609,0.00027397,7]
[343937551,1733103048106,-500.0,0.00027397,7]
[343937552,1733103048117,-500.0,0.00027397,7]
[343937553,1733103048127,-587.26,0.00027397,7]
[343937554,1733103048138,-500.0,0.00027397,7]
[343937555,1733103048148,-500.0,0.00027397,7]
[343937556,1733103048158,-558.97610518,0.00027397,7]
[343937557,1733103048168,-1500.0,0.00027397,2]
[343937558,1733103048177,-500.0,0.00027397,7]
[343937559,1733103048186,-500.0,0.00027397,7]
[343937560,1733103048196,-157.47455516,0.00027397,7]
[343937561,1733103048206,-369.12900002,0.00027397,7]
[343937562,1733103048215,-403.00903703,0.00027397,7]
[343937563,1733103048225,-500.0,0.00027397,7]
[343937564,1733103048234,-500.0,0.00027397,7]
[343937565,1733103048245,-260.93,0.00027397,7]
[343937566,1733103048255,-500.0,0.00027397,7]
[343937567,1733103048264,-500.0,0.00027397,7]
[343937568,1733103048274,-500.0,0.00027397,7]
[343937569,1733103048283,-500.0,0.00027397,7]
[343937570,1733103048292,-500.0,0.00027397,7]
[343937571,1733103048303,-500.0,0.00027397,7]
[343937572,1733103048312,-500.0,0.00027397,7]
[343937573,1733103048321,-1029.41,0.00027397,7]
[343937574,1733103048330,-715.73,0.00027397,7]
[343937575,1733103048340,-569.75287456,0.00027397,7]
[343937576,1733103048350,-523.34,0.00027397,7]
[343937577,1733103048359,-500.0,0.00027397,7]
[343937578,1733103048369,-500.0,0.00027397,7]
[343937579,1733103048378,-464.43661671,0.00027397,7]
[343937588,1733103584768,167.89756,0.00013973,2]